fUSD/lending_fUSD_20260615
["ID","MTS","AMOUNT","RATE_DAILY","PERIOD"]
[425088652,1781478644000,-500.0,0.00014899,2]
[425088609,1781478644000,-631.01,0.00014899,2]
[425088612,1781478644000,-631.09,0.00014899,2]
[425088611,1781478644000,-631.01,0.00014899,2]
[425088616,1781478644000,-500.0,0.00014899,2]
[425088615,1781478644000,-500.0,0.00014899,2]
[425088610,1781478644000,-631.01,0.00014899,2]
[425088614,1781478644000,-500.0,0.00014899,2]
[425088613,1781478644000,-500.0,0.00014899,2]
[425088636,1781478644000,-500.0,0.00014899,2]
[425088617,1781478644000,-500.0,0.00014899,2]
[425088620,1781478644000,-500.0,0.00014899,2]
[425088622,1781478644000,-500.0,0.00014899,2]
[425088621,1781478644000,-500.0,0.00014899,2]
[425088624,1781478644000,-500.0,0.00014899,2]
[425088625,1781478644000,-500.0,0.00014899,2]
[425088623,1781478644000,-248.5679605,0.00014899,2]
[425088626,1781478644000,-500.0,0.00014899,2]
[425088627,1781478644000,-500.0,0.00014899,2]
[425088628,1781478644000,-323.22914473,0.00014899,2]
[425088618,1781478644000,-500.0,0.00014899,2]
[425088650,1781478644000,-500.0,0.00014899,2]
[425088663,1781478644000,-683.33,0.00014899,2]
[425088658,1781478644000,-683.33,0.00014899,2]
[425088679,1781478644000,-500.0,0.00014899,2]
[425088683,1781478644000,-2000.0,0.000149,2]
[425088681,1781478644000,-500.0,0.00014899,2]
[425088682,1781478644000,-553.92,0.00014899,2]
[425088685,1781478644000,-836.0,0.000149,5]
[425088684,1781478644000,-4951.924,0.000149,2]
[425088687,1781478644000,-10857.04665394,0.000149,2]
[425088686,1781478644000,-10000.0,0.000149,2]
[425088688,1781478644000,-151.0,0.000149,2]
[425088675,1781478644000,-500.0,0.00014899,2]
[425088691,1781478644000,-500.0,0.000149,2]
[425088690,1781478644000,-500.0,0.000149,2]
[425088693,1781478644000,-500.0,0.000149,2]
[425088692,1781478644000,-500.0,0.000149,2]
[425088655,1781478644000,-500.0,0.00014899,2]
[425088694,1781478644000,-500.0,0.000149,2]
[425088698,1781478644000,-500.0,0.000149,2]
[425088699,1781478644000,-500.0,0.000149,2]
[425088695,1781478644000,-500.0,0.000149,2]
[425088697,1781478644000,-500.0,0.000149,2]
[425088689,1781478644000,-500.0,0.000149,2]
[425088677,1781478644000,-500.0,0.00014899,2]
[425088696,1781478644000,-500.0,0.000149,2]
[425088680,1781478644000,-500.0,0.00014899,2]
[425088676,1781478644000,-500.0,0.00014899,2]
[425088651,1781478644000,-500.0,0.00014899,2]
[425088656,1781478644000,-268.06129672,0.00014899,2]
[425088659,1781478644000,-683.33,0.00014899,2]
[425088669,1781478644000,-683.33,0.00014899,2]
[425088664,1781478644000,-683.33,0.00014899,2]
[425088661,1781478644000,-683.33,0.00014899,2]
[425088662,1781478644000,-683.33,0.00014899,2]
[425088667,1781478644000,-683.33,0.00014899,2]
[425088657,1781478644000,-683.33,0.00014899,2]
[425088660,1781478644000,-683.33,0.00014899,2]
[425088665,1781478644000,-683.33,0.00014899,2]
[425088674,1781478644000,-500.0,0.00014899,2]
[425088672,1781478644000,-683.33,0.00014899,2]
[425088673,1781478644000,-683.33,0.00014899,2]
[425088671,1781478644000,-683.33,0.00014899,2]
[425088668,1781478644000,-683.33,0.00014899,2]
[425088666,1781478644000,-683.33,0.00014899,2]
[425088670,1781478644000,-683.33,0.00014899,2]
[425088678,1781478644000,-500.0,0.00014899,2]
[425088719,1781478645000,-500.0,0.000149,2]
[425088720,1781478645000,-500.0,0.000149,2]
[425088722,1781478645000,-500.0,0.000149,2]
[425088721,1781478645000,-500.0,0.000149,2]
[425088727,1781478645000,-500.0,0.000149,2]
[425088725,1781478645000,-500.0,0.000149,2]
[425088724,1781478645000,-500.0,0.000149,2]
[425088731,1781478645000,-500.0,0.000149,2]
[425088723,1781478645000,-500.0,0.000149,2]
[425088726,1781478645000,-500.0,0.000149,2]
[425088729,1781478645000,-500.0,0.000149,2]
[425088730,1781478645000,-500.0,0.000149,2]
[425088715,1781478645000,-500.0,0.000149,2]
[425088732,1781478645000,-500.0,0.000149,2]
[425088728,1781478645000,-500.0,0.000149,2]
[425088714,1781478645000,-500.0,0.000149,2]
[425088705,1781478645000,-500.0,0.000149,2]
[425088716,1781478645000,-500.0,0.000149,2]
[425088735,1781478645000,-500.0,0.000149,2]
[425088703,1781478645000,-500.0,0.000149,2]
[425088700,1781478645000,-500.0,0.000149,2]
[425088701,1781478645000,-500.0,0.000149,2]
[425088706,1781478645000,-500.0,0.000149,2]
[425088702,1781478645000,-500.0,0.000149,2]
[425088717,1781478645000,-500.0,0.000149,2]
[425088704,1781478645000,-500.0,0.000149,2]
[425088709,1781478645000,-500.0,0.000149,2]
[425088708,1781478645000,-500.0,0.000149,2]
[425088713,1781478645000,-500.0,0.000149,2]
[425088710,1781478645000,-500.0,0.000149,2]
[425088712,1781478645000,-500.0,0.000149,2]
[425088711,1781478645000,-500.0,0.000149,2]
[425088707,1781478645000,-500.0,0.000149,2]
[425088734,1781478645000,-500.0,0.000149,2]
[425088740,1781478645000,-500.0,0.000149,2]
[425088736,1781478645000,-500.0,0.000149,2]
[425088758,1781478645000,-151.0,0.000149,2]
[425088760,1781478645000,-2991.57404873,0.000149,2]
[425088757,1781478645000,-2509.0,0.000149,5]
[425088756,1781478645000,-151.0,0.000149,2]
[425088763,1781478645000,-3036.3262317,0.000149,2]
[425088759,1781478645000,-151.0,0.000149,2]
[425088754,1781478645000,-151.0,0.000149,2]
[425088761,1781478645000,-158.61093,0.000149,2]
[425088765,1781478645000,-960.992805,0.000149,2]
[425088771,1781478645000,-181.0,0.000149,2]
[425088768,1781478645000,-960.992805,0.000149,2]
[425088766,1781478645000,-960.992805,0.000149,2]
[425088769,1781478645000,-1557.58719161,0.000149,2]
[425088733,1781478645000,-500.0,0.000149,2]
[425088770,1781478645000,-1019.12011878,0.000149,2]
[425088752,1781478645000,-151.0,0.000149,2]
[425088764,1781478645000,-960.992805,0.000149,2]
[425088755,1781478645000,-151.0,0.000149,2]
[425088750,1781478645000,-151.0,0.000149,2]
[425088767,1781478645000,-151.0,0.000149,2]
[425088738,1781478645000,-500.0,0.000149,2]
[425088739,1781478645000,-500.0,0.000149,2]
[425088737,1781478645000,-500.0,0.000149,2]
[425088744,1781478645000,-500.0,0.000149,2]
[425088747,1781478645000,-500.0,0.000149,2]
[425088741,1781478645000,-500.0,0.000149,2]
[425088742,1781478645000,-500.0,0.000149,2]
[425088746,1781478645000,-500.0,0.000149,2]
[425088743,1781478645000,-500.0,0.000149,2]
[425088748,1781478645000,-500.0,0.000149,2]
[425088749,1781478645000,-752.14783221,0.000149,2]
[425088751,1781478645000,-151.0,0.000149,2]
[425088745,1781478645000,-500.0,0.000149,2]
[425088753,1781478645000,-151.0,0.000149,2]
[425088783,1781478646000,-500.0,0.0001497,2]
[425088788,1781478646000,-1000.0,0.0001497,2]
[425088793,1781478646000,-534.1,0.00014987,2]
[425088787,1781478646000,-500.0,0.0001497,2]
[425088792,1781478646000,-151.0,0.00014983,2]
[425088790,1781478646000,-1208.20238932,0.0001497,2]
[425088794,1781478646000,-534.1,0.00014987,2]
[425088781,1781478646000,-500.0,0.0001497,2]
[425088791,1781478646000,-384.4739633,0.00014975,2]
[425088789,1781478646000,-904.75650028,0.0001497,2]
[425088785,1781478646000,-500.0,0.0001497,2]
[425088774,1781478646000,-459.31188642,0.0001496,2]
[425088784,1781478646000,-1000.0,0.0001497,2]
[425088782,1781478646000,-1000.0,0.0001497,2]
[425088780,1781478646000,-1000.0,0.0001497,2]
[425088777,1781478646000,-203.89573405,0.0001497,2]
[425088773,1781478646000,-755.35630847,0.00014927,2]
[425088776,1781478646000,-203.89573405,0.0001497,2]
[425088778,1781478646000,-203.89573405,0.0001497,2]
[425088775,1781478646000,-203.89573405,0.0001497,2]
[425088779,1781478646000,-203.89573405,0.0001497,2]
[425088795,1781478646000,-534.1,0.00014987,2]
[425088786,1781478646000,-1000.0,0.0001497,2]
[425088796,1781478646000,-534.1,0.00014987,2]
[425088772,1781478646000,-291.74221137,0.00014908,2]
[425088800,1781478646000,-683.33,0.00014987,2]
[425088820,1781478646000,-2591428.79397502,0.00015,2]
[425088821,1781478646000,-3471.44740109,0.00015,3]
[425088814,1781478646000,-250.0,0.00014999,2]
[425088817,1781478646000,-2935626.71818269,0.00015,2]
[425088818,1781478646000,-10083.99278242,0.00015,2]
[425088819,1781478646000,-134680.23416014,0.00015,2]
[425088816,1781478646000,-3065676.94678504,0.00015,2]
[425088822,1781478646000,-266286.7940035,0.00015,2]
[425088815,1781478646000,-300.0,0.00014999,2]
[425088813,1781478646000,-3000.0,0.00014999,2]
[425088808,1781478646000,-221.88136,0.00014999,2]
[425088812,1781478646000,-151.0,0.00014999,2]
[425088797,1781478646000,-534.26255172,0.00014987,2]
[425088807,1781478646000,-221.88136,0.00014999,2]
[425088805,1781478646000,-1046.48317555,0.00014999,5]
[425088809,1781478646000,-221.88136,0.00014999,2]
[425088806,1781478646000,-1046.48317554,0.00014999,5]
[425088811,1781478646000,-151.0,0.00014999,2]
[425088804,1781478646000,-151.0,0.00014997,2]
[425088802,1781478646000,-683.33,0.00014987,2]
[425088801,1781478646000,-683.33,0.00014987,2]
[425088803,1781478646000,-683.41,0.00014987,2]
[425088798,1781478646000,-1618.6668969,0.00014987,2]
[425088799,1781478646000,-683.33,0.00014987,2]
[425088810,1781478646000,-221.88136,0.00014999,2]
[425088824,1781478647000,-3374.99794383,0.00011099,2]
[425088823,1781478647000,-5652.04110313,0.00011099,2]
[425088825,1781478648000,-775.12250009,0.00011099,2]
[425088826,1781478649000,-504.0,0.00011099,2]
[425088827,1781478706000,2724.0,0.00028767,120]
[425088828,1781478776000,-304.70227054,0.0001,2]
[425088829,1781478829000,-500.0,0.00010197,2]
[425088830,1781478883000,-340.0,0.00010095,2]
[425088831,1781478936000,-500.0,0.00010197,2]
[425088832,1781478990000,-189.21467913,0.00010204,2]
[425088833,1781479043000,-227.0,0.00010679,2]
[425088834,1781479096000,-250.0,0.00010733,2]
[425088836,1781479150000,-506.843522,0.00010787,2]
[425088837,1781479156000,-312.15255407,0.0001,2]
[425088838,1781479203000,-500.0,0.00010885,2]
[425088839,1781479257000,-500.0,0.00010884,2]
[425088840,1781479322000,187.84744593,0.00010745,2]
[425088842,1781479322000,384.47525705,0.00010745,2]
[425088841,1781479322000,500.0,0.00010745,2]
[425088843,1781479395000,174.21,0.00028973,120]
[425088844,1781479417000,-1674.689909,0.00010358,2]
[425088845,1781479470000,-934.87887553,0.00010317,2]
[425088846,1781479491000,-334.03112447,0.00010317,2]
[425088851,1781479538000,-934.87887553,0.00010257,2]
[425088852,1781479558000,-247.18112447,0.00010257,2]
[425088853,1781479606000,-200.0,0.00010334,2]
[425088854,1781479660000,-1547.15,0.00010292,2]
[425088855,1781479664000,-524.39,0.00010334,2]
[425088856,1781479664000,-389.715717,0.00010334,2]
[425088857,1781479664000,-160.0,0.00010364,2]
[425088859,1781479664000,-164.67,0.00010515,2]
[425088858,1781479664000,-500.0,0.00010409,2]
[425088876,1781479665000,-500.0,0.00010799,2]
[425088874,1781479665000,-191.31395773,0.00010799,2]
[425088873,1781479665000,-150.0,0.00010798,2]
[425088871,1781479665000,-160.0,0.00010754,2]
[425088872,1781479665000,-300.0,0.00010798,2]
[425088868,1781479665000,-238.53766062,0.00010588,2]
[425088875,1781479665000,-500.0,0.00010799,2]
[425088869,1781479665000,-168.28,0.0001059,2]
[425088866,1781479665000,-500.0,0.00010588,2]
[425088864,1781479665000,-500.0,0.00010588,2]
[425088865,1781479665000,-500.0,0.00010588,2]
[425088863,1781479665000,-500.0,0.00010588,2]
[425088861,1781479665000,-565.25756654,0.00010588,2]
[425088862,1781479665000,-500.0,0.00010588,2]
[425088860,1781479665000,-500.0,0.00010588,2]
[425088867,1781479665000,-313.30438864,0.00010588,2]
[425088878,1781479665000,-261.12624681,0.00010799,2]
[425088870,1781479665000,-172.03932721,0.00010746,2]
[425088880,1781479665000,-500.0,0.00010799,2]
[425088877,1781479665000,-503.99058857,0.00010799,2]
[425088895,1781479665000,-1583.26,0.00011178,2]
[425088890,1781479665000,-7668.46,0.00011168,2]
[425088892,1781479665000,-9999.99,0.00011168,2]
[425088893,1781479665000,-1452.02,0.00011168,2]
[425088891,1781479665000,-9999.99,0.00011168,2]
[425088888,1781479665000,-391.6,0.00011099,2]
[425088886,1781479665000,-1852.42,0.00011015,2]
[425088894,1781479665000,-166.66,0.00011178,2]
[425088887,1781479665000,-166.66,0.00011068,2]
[425088884,1781479665000,-166.66,0.00010959,2]
[425088885,1781479665000,-384.3903,0.00010999,2]
[425088883,1781479665000,-1000.0,0.00010945,2]
[425088881,1781479665000,-500.0,0.00010799,2]
[425088882,1781479665000,-55210.15,0.000108,2]
[425088879,1781479665000,-397.40127324,0.00010799,2]
[425088889,1781479665000,-367.48,0.00011168,2]
[425088910,1781479666000,-10643.47008012,0.00011507,2]
[425088911,1781479666000,-1897.70389483,0.00011507,2]
[425088908,1781479666000,-166.66,0.00011507,2]
[425088909,1781479666000,-537.24845163,0.00011507,2]
[425088905,1781479666000,-166.66,0.00011397,2]
[425088907,1781479666000,-4951.924,0.00011504,2]
[425088903,1781479666000,-150.99,0.00011358,2]
[425088899,1781479666000,-358.20939273,0.00011349,2]
[425088901,1781479666000,-747.79,0.00011358,2]
[425088902,1781479666000,-4999.99,0.00011358,2]
[425088898,1781479666000,-166.66,0.00011288,2]
[425088900,1781479666000,-299.99,0.00011358,2]
[425088897,1781479666000,-200.0,0.00011184,7]
[425088896,1781479666000,-200.0,0.00011184,2]
[425088904,1781479666000,-391.6,0.00011376,2]
[425088912,1781479666000,-14879.52172632,0.00011507,2]
[425088906,1781479666000,-250.0,0.00011451,2]
[425088914,1781479666000,-179.89836188,0.00011507,2]
[425088913,1781479666000,-1038.39146108,0.00011507,2]
[425088930,1781479666000,-500.0,0.00011603,2]
[425088929,1781479666000,-500.0,0.00011603,2]
[425088927,1781479666000,-500.0,0.00011603,2]
[425088928,1781479666000,-500.0,0.00011603,2]
[425088926,1781479666000,-500.0,0.00011603,2]
[425088923,1781479666000,-500.0,0.00011603,2]
[425088924,1781479666000,-500.0,0.00011603,2]
[425088925,1781479666000,-500.0,0.00011603,2]
[425088921,1781479666000,-500.0,0.00011603,2]
[425088919,1781479666000,-1046.48317555,0.00011603,3]
[425088920,1781479666000,-3000.0,0.00011603,2]
[425088918,1781479666000,-151.0,0.00011601,2]
[425088916,1781479666000,-1270.5445947,0.0001154,2]
[425088917,1781479666000,-900.0,0.000116,4]
[425088915,1781479666000,-1019.12011879,0.00011507,2]
[425088922,1781479666000,-500.0,0.00011603,2]
[425088935,1781479667000,-1800.0,0.000117,4]
[425088931,1781479667000,-2500000.0,0.00011604,2]
[425088932,1781479667000,-1268.91,0.00011607,2]
[425088933,1781479667000,-310.01,0.0001164,2]
[425088936,1781479667000,-2700.0,0.000118,4]
[425088934,1781479667000,-391.6,0.00011654,2]
[425088941,1781479667000,-3600.0,0.000119,4]
[425088938,1781479667000,-420.0,0.00011868,2]
[425088939,1781479667000,-10643.47008011,0.00011883,2]
[425088940,1781479667000,-14879.52172624,0.00011883,2]
[425088942,1781479667000,-391.6,0.00011931,2]
[425088943,1781479667000,-1897.70389481,0.00011992,2]
[425088937,1781479667000,-255.0,0.00011835,2]
[425088944,1781479670000,306258.56201485,0.000107,2]
[425088947,1781479688000,-3387.48266823,0.00011143,2]
[425088948,1781479688000,-8939.62035667,0.00011143,2]
[425088945,1781479688000,-500.0,0.00010588,2]
[425088946,1781479688000,-2193741.43798515,0.000107,2]
[425088950,1781479690000,3132.74663371,0.00011178,2]
[425088949,1781479690000,637.77243753,0.00011178,2]
[425088951,1781479690000,2214.94788622,0.00011178,2]
[425088952,1781479690000,732.68539863,0.00011178,2]
[425088953,1781479818000,-151.0,0.00011065,2]
[425088999,1781479832000,-335.18664325,0.0001262,2]
[425088982,1781479832000,-2362.2948834,0.0001119,2]
[425088983,1781479832000,-151.0,0.00011551,2]
[425088984,1781479832000,-1429.48,0.00011829,2]
[425088985,1781479832000,-1971.58,0.00011829,2]
[425088986,1781479832000,-349.46918583,0.00011992,2]
[425088987,1781479832000,-784.16,0.00012027,2]
[425088990,1781479832000,-150.99,0.00012128,2]
[425088991,1781479832000,-920.07,0.00012153,2]
[425088988,1781479832000,-537.24845157,0.00012073,2]
[425088992,1781479832000,-2645.89,0.00012166,2]
[425088993,1781479832000,-185.24659506,0.00012172,2]
[425089004,1781479832000,-203.89573405,0.00012638,2]
[425089003,1781479832000,-203.89573405,0.00012638,2]
[425088994,1781479832000,-391.6,0.00012209,2]
[425088997,1781479832000,-174.21,0.00012329,2]
[425088989,1781479832000,-152.4155189,0.00012128,2]
[425088977,1781479832000,-202.793412,0.00011177,2]
[425088978,1781479832000,-500.0,0.00011177,2]
[425088976,1781479832000,-500.0,0.00011177,2]
[425088958,1781479832000,-610.44814184,0.000107,2]
[425088959,1781479832000,-2190.72847252,0.000107,2]
[425088961,1781479832000,-48517.69309658,0.000107,2]
[425088960,1781479832000,-305.87152824,0.000107,2]
[425088962,1781479832000,-5196.14510695,0.000107,2]
[425088964,1781479832000,-1301365.44655387,0.000107,2]
[425088966,1781479832000,-2220.89985749,0.00011161,2]
[425088968,1781479832000,-1948.32316134,0.00011161,2]
[425088970,1781479832000,-4722.40181848,0.00011161,2]
[425088979,1781479832000,-328.18089127,0.00011177,2]
[425088980,1781479832000,-368.14493207,0.00011177,2]
[425088981,1781479832000,-434.74243346,0.00011177,2]
[425088975,1781479832000,-500.0,0.00011177,2]
[425088974,1781479832000,-182.78837276,0.00011177,2]
[425088972,1781479832000,-3087.97190107,0.00011161,2]
[425088973,1781479832000,-150.0,0.00011176,2]
[425088996,1781479832000,-14879.52172624,0.00012258,2]
[425088995,1781479832000,-255.0,0.00012227,2]
[425089001,1781479832000,-537.24845157,0.00012638,2]
[425089018,1781479832000,-500.0,0.0001315,2]
[425089024,1781479832000,-151.42762908,0.00013284,2]
[425089025,1781479832000,-1423.2779211,0.00013314,2]
[425089027,1781479832000,-500.0,0.00013356,2]
[425089035,1781479832000,-2000.0,0.00013465,2]
[425089034,1781479832000,-2000.0,0.00013433,2]
[425089028,1781479832000,-500.0,0.00013356,2]
[425089026,1781479832000,-249336.9481338,0.00013332,2]
[425089030,1781479832000,-60732.0817003,0.00013377,2]
[425089029,1781479832000,-500.0,0.00013356,2]
[425089031,1781479832000,-433.0,0.00013378,2]
[425089032,1781479832000,-14879.52172624,0.00013385,2]
[425089036,1781479832000,-500.0,0.00013474,2]
[425089037,1781479832000,-150.0,0.00013488,2]
[425089038,1781479832000,-150.0,0.00013488,2]
[425089039,1781479832000,-150.0,0.00013488,2]
[425088998,1781479832000,-256.48,0.00012596,2]
[425089016,1781479832000,-150.0,0.0001315,2]
[425089017,1781479832000,-150.0,0.0001315,2]
[425089033,1781479832000,-500.0,0.00013433,2]
[425089023,1781479832000,-335.18664325,0.00013215,2]
[425089002,1781479832000,-203.89573405,0.00012638,2]
[425089019,1781479832000,-200.0,0.0001315,2]
[425089000,1781479832000,-14879.52172624,0.00012634,2]
[425089006,1781479832000,-203.89573405,0.00012638,2]
[425089005,1781479832000,-203.89573405,0.00012638,2]
[425089011,1781479832000,-1423.27792116,0.0001305,2]
[425089010,1781479832000,-500.0,0.00013041,2]
[425089008,1781479832000,-1268.91,0.00012897,2]
[425089007,1781479832000,-141131.4103259,0.00012822,2]
[425089021,1781479832000,-150.0,0.0001315,2]
[425089012,1781479832000,-15770.54995622,0.00013143,2]
[425089014,1781479832000,-31920.5403,0.00013143,2]
[425089022,1781479832000,-537.24845157,0.00013204,2]
[425089013,1781479832000,-23591.79955987,0.00013143,2]
[425089020,1781479832000,-385.47242222,0.0001315,2]
[425089009,1781479832000,-14879.52172624,0.0001301,2]
[425089015,1781479832000,-500.0,0.0001315,2]
[425089069,1781479833000,-500.0,0.00013698,2]
[425089072,1781479833000,-500.0,0.00013698,2]
[425089070,1781479833000,-500.0,0.00013698,2]
[425089076,1781479833000,-500.0,0.00013698,2]
[425089075,1781479833000,-500.0,0.00013698,2]
[425089078,1781479833000,-500.0,0.00013698,2]
[425089077,1781479833000,-500.0,0.00013698,2]
[425089080,1781479833000,-500.0,0.00013698,2]
[425089071,1781479833000,-500.0,0.00013698,2]
[425089073,1781479833000,-500.0,0.00013698,2]
[425089074,1781479833000,-500.0,0.00013698,2]
[425089083,1781479833000,-500.0,0.00013698,2]
[425089082,1781479833000,-500.0,0.00013698,2]
[425089089,1781479833000,-500.0,0.00013698,2]
[425089090,1781479833000,-500.0,0.00013698,2]
[425089081,1781479833000,-500.0,0.00013698,2]
[425089091,1781479833000,-500.0,0.00013698,2]
[425089092,1781479833000,-581.8,0.00013698,2]
[425089085,1781479833000,-500.0,0.00013698,2]
[425089084,1781479833000,-416.73,0.00013698,2]
[425089088,1781479833000,-500.0,0.00013698,2]
[425089087,1781479833000,-500.0,0.00013698,2]
[425089063,1781479833000,-500.0,0.00013698,2]
[425089079,1781479833000,-500.0,0.00013698,2]
[425089064,1781479833000,-500.0,0.00013698,2]
[425089050,1781479833000,-500.0,0.00013698,2]
[425089062,1781479833000,-500.0,0.00013698,2]
[425089093,1781479833000,-500.0,0.00013698,2]
[425089045,1781479833000,-500.0,0.00013589,2]
[425089042,1781479833000,-150.0,0.00013488,2]
[425089044,1781479833000,-1423.2779211,0.00013579,2]
[425089040,1781479833000,-150.0,0.00013488,2]
[425089041,1781479833000,-150.0,0.00013488,2]
[425089043,1781479833000,-2159.6174854,0.00013547,2]
[425089047,1781479833000,-500.0,0.00013698,2]
[425089049,1781479833000,-500.0,0.00013698,2]
[425089048,1781479833000,-500.0,0.00013698,2]
[425089046,1781479833000,-920.07,0.00013672,2]
[425089053,1781479833000,-500.0,0.00013698,2]
[425089056,1781479833000,-500.0,0.00013698,2]
[425089051,1781479833000,-500.0,0.00013698,2]
[425089054,1781479833000,-500.0,0.00013698,2]
[425089052,1781479833000,-170.66255172,0.00013698,2]
[425089055,1781479833000,-500.0,0.00013698,2]
[425089058,1781479833000,-500.0,0.00013698,2]
[425089066,1781479833000,-615.34468037,0.00013698,2]
[425089067,1781479833000,-500.0,0.00013698,2]
[425089068,1781479833000,-500.0,0.00013698,2]
[425089057,1781479833000,-500.0,0.00013698,2]
[425089059,1781479833000,-500.0,0.00013698,2]
[425089060,1781479833000,-500.0,0.00013698,2]
[425089061,1781479833000,-500.0,0.00013698,2]
[425089065,1781479833000,-500.0,0.00013698,2]
[425089099,1781479833000,-500.0,0.00013698,2]
[425089086,1781479833000,-500.0,0.00013698,2]
[425089103,1781479833000,-500.0,0.00013698,2]
[425089135,1781479833000,-570.32,0.00013698,2]
[425089131,1781479833000,-570.32,0.00013698,2]
[425089126,1781479833000,-226.33260723,0.00013698,2]
[425089129,1781479833000,-570.32,0.00013698,2]
[425089128,1781479833000,-570.32,0.00013698,2]
[425089124,1781479833000,-500.0,0.00013698,2]
[425089127,1781479833000,-570.32,0.00013698,2]
[425089132,1781479833000,-570.32,0.00013698,2]
[425089133,1781479833000,-570.32,0.00013698,2]
[425089134,1781479833000,-570.32,0.00013698,2]
[425089142,1781479833000,-503.23,0.00013698,2]
[425089136,1781479833000,-570.32,0.00013698,2]
[425089138,1781479833000,-500.0,0.00013698,2]
[425089139,1781479833000,-500.0,0.00013698,2]
[425089137,1781479833000,-500.0,0.00013698,2]
[425089143,1781479833000,-503.23,0.00013698,2]
[425089140,1781479833000,-503.23,0.00013698,2]
[425089141,1781479833000,-503.23,0.00013698,2]
[425089144,1781479833000,-503.23,0.00013698,2]
[425089146,1781479833000,-503.23,0.00013698,2]
[425089147,1781479833000,-503.23,0.00013698,2]
[425089148,1781479833000,-500.0,0.00013698,2]
[425089149,1781479833000,-500.0,0.00013698,2]
[425089150,1781479833000,-500.0,0.00013698,2]
[425089097,1781479833000,-500.0,0.00013698,2]
[425089130,1781479833000,-570.32,0.00013698,2]
[425089125,1781479833000,-503.57081224,0.00013698,2]
[425089145,1781479833000,-503.23,0.00013698,2]
[425089121,1781479833000,-500.0,0.00013698,2]
[425089122,1781479833000,-500.0,0.00013698,2]
[425089096,1781479833000,-500.0,0.00013698,2]
[425089098,1781479833000,-500.0,0.00013698,2]
[425089104,1781479833000,-500.0,0.00013698,2]
[425089105,1781479833000,-287.06193287,0.00013698,2]
[425089094,1781479833000,-500.0,0.00013698,2]
[425089102,1781479833000,-500.0,0.00013698,2]
[425089101,1781479833000,-500.0,0.00013698,2]
[425089100,1781479833000,-500.0,0.00013698,2]
[425089107,1781479833000,-500.0,0.00013698,2]
[425089116,1781479833000,-500.0,0.00013698,2]
[425089117,1781479833000,-500.0,0.00013698,2]
[425089095,1781479833000,-500.0,0.00013698,2]
[425089109,1781479833000,-500.0,0.00013698,2]
[425089118,1781479833000,-500.0,0.00013698,2]
[425089115,1781479833000,-500.0,0.00013698,2]
[425089123,1781479833000,-500.0,0.00013698,2]
[425089114,1781479833000,-500.0,0.00013698,2]
[425089112,1781479833000,-500.0,0.00013698,2]
[425089119,1781479833000,-500.0,0.00013698,2]
[425089111,1781479833000,-500.0,0.00013698,2]
[425089113,1781479833000,-500.0,0.00013698,2]
[425089110,1781479833000,-500.0,0.00013698,2]